[Event "Croatian-ch Youth U15 2022"]
[Site "Trogir"]
[Date "2022.06.24"]
[Round "4.9"]
[White "Karij, Petra"]
[Black "Begic, Klara"]
[Result "1/2-1/2"]
[ECO "C00"]
[WhiteElo "1433"]
[BlackElo "1727"]
[Annotator "NA RC"]
[PlyCount "78"]
[EventDate "2022.06.22"]
[EventType "swiss"]
[EventCountry "CRO"]
[SourceTitle "playchess.com"]
[Source "ChessBase"]
[SourceQuality "1"]
[TimeControl "5400+30"]

1. e4 {[%emt 0:00:03]} e6 {[%emt 0:02:51]} 2. Qe2 {[%emt 0:00:17]} c5 {[%emt 0:00:09]} 3. Nf3 {[%emt 0:00:06]} Nc6 {[%emt 0:00:29]} 4. g3 {[%emt 0:00:10]} Nge7 {[%emt 0:04:23]} 5. Bg2 {[%emt 0:02:34]} d5 {[%emt 0:02:46]} 6. d3 {[%emt 0:02:45]} Ng6 {[%emt 0:13:05]} 7. O-O {[%emt 0:03:09]} Be7 {[%emt 0:00:27]} 8. c3 {[%emt 0:06:06]} O-O {[%emt 0:03:11]} 9. Na3 {[%emt 0:01:03]} a6 {[%emt 0:18:38]} 10. Nc2 {[%emt 0:00:44]} dxe4 {[%emt 0:02:41]} 11. Qxe4 {[%emt 0:10:47]} Qc7 {[%emt 0:04:25]} 12. d4 {[%emt 0:04:31]} Rd8 {[%emt 0:03:27]} 13. dxc5 {[%emt 0:05:43]} Bxc5 {[%emt 0:00:51]} 14. b4 {[%emt 0:00:28]} Be7 {[%emt 0:05:22]} 15. Bb2 {[%emt 0:01:59]} Bf6 {[%emt 0:06:08]} 16. Rac1 {[%emt 0:04:48]} Nge5 {[%emt 0:12:56]} 17. Ncd4 {[%emt 0:06:20]} Nxf3+ {[%emt 0:01:51]} 18. Nxf3 {[%emt 0:04:37]} Bd7 {[%emt 0:08:43]} 19. Rfd1 {[%emt 0:01:29]} Be8 {[%emt 0:00:14]} 20. Nd4 {[%emt 0:01:26]} Qb6 {[%emt 0:04:35]} 21. Nf3 {[%emt 0:07:24]} Nxb4 {[%emt 0:01:59]} 22. Rxd8 {[%emt 0:04:53]} Rxd8 {[%emt 0:00:03]} 23. cxb4 {[%emt 0:01:25]} Bxb2 {[%emt 0:00:23]} 24. Rb1 {[%emt 0:00:41]} Bf6 {[%emt 0:00:50]} 25. h4 {[%emt 0:04:20]} h6 {[%emt 0:00:43]} 26. a3 {[%emt 0:03:05]} Bc6 {[%emt 0:00:43]} 27. Qe2 {[%emt 0:00:46]} Bb5 {[%emt 0:00:14]} 28. Qa2 {[%emt 0:01:36]} Rd3 {[%emt 0:00:49]} 29. Kh2 {[%emt 0:01:29]} Bc6 {[%emt 0:00:36]} 30. Ne1 {[%emt 0:01:03]} Rd7 {[%emt 0:00:38]} 31. Nf3 {[%emt 0:00:29]} Qb5 {[%emt 0:00:33]} 32. a4 {[%emt 0:03:10]} Qf5 {[%emt 0:01:06]} 33. Ne1 {[%emt 0:00:47]} Bxa4 {[%emt 0:00:31]} 34. Qxa4 {[%emt 0:01:05]} Qxb1 {[%emt 0:00:13]} 35. Qxd7 {[%emt 0:00:05]} Qxe1 {[%emt 0:00:06]} 36. Qc8+ {[%emt 0:00:15]} Kh7 {[%emt 0:00:12]} 37. Qxb7 {[%emt 0:00:36]} Qxf2 {[%emt 0:00:58]} 38. Qxf7 {[%emt 0:01:00]} Qe2 {[%emt 0:00:37]} 39. h5 {[%emt 0:01:08]} Be5 {[%emt 0:00:25]} 1/2-1/2

[Event "Croatian-ch Youth U15 2022"]
[Site "Trogir"]
[Date "2022.06.24"]
[Round "4.10"]
[White "Zovko, Josipa"]
[Black "Botica, Lucija"]
[Result "1/2-1/2"]
[ECO "D03"]
[WhiteElo "1419"]
[BlackElo "1145"]
[Annotator "NA RC"]
[PlyCount "60"]
[EventDate "2022.06.22"]
[EventType "swiss"]
[EventCountry "CRO"]
[SourceTitle "playchess.com"]
[Source "ChessBase"]
[SourceQuality "1"]
[TimeControl "5400+30"]

1. d4 {[%emt 0:04:39]} Nf6 {[%emt 0:00:05]} 2. Nf3 {[%emt 0:01:44]} d5 {[%emt 0:00:56]} 3. Bg5 {[%emt 0:00:08]} Nbd7 {[%emt 0:03:47]} 4. e3 {[%emt 0:02:50]} Ne4 {[%emt 0:02:18]} 5. Bf4 {[%emt 0:03:12]} Ndf6 {[%emt 0:00:46]} 6. Bd3 {[%emt 0:05:57]} e6 {[%emt 0:03:45]} 7. Nfd2 {[%emt 0:07:02]} Bd6 {[%emt 0:02:17]} 8. Nxe4 {[%emt 0:03:55]} Nxe4 {[%emt 0:01:42]} 9. Bxe4 {[%emt 0:02:16]} dxe4 {[%emt 0:00:04]} 10. Bg3 {[%emt 0:01:23]} O-O {[%emt 0:11:39]} 11. O-O {[%emt 0:05:38]} Bxg3 {[%emt 0:03:56]} 12. fxg3 {[%emt 0:07:29]} Qg5 {[%emt 0:01:52]} 13. Qe2 {[%emt 0:01:38]} e5 {[%emt 0:04:25]} 14. c3 {[%emt 0:07:52]} exd4 {[%emt 0:02:21]} 15. exd4 {[%emt 0:00:32]} e3 {[%emt 0:05:58]} 16. Qf3 {[%emt 0:14:20]} Bg4 {[%emt 0:08:02]} 17. Qf4 {[%emt 0:02:18]} Qxf4 {[%emt 0:01:58]} 18. gxf4 {[%emt 0:01:15]} Rfe8 {[%emt 0:04:33]} 19. Re1 {[%emt 0:03:48]} Rad8 {[%emt 0:08:52]} 20. Na3 {[%emt 0:04:39]} e2 {[%emt 0:02:36]} 21. Kf2 {[%emt 0:01:50]} Bh5 {[%emt 0:06:33]} 22. h3 {[%emt 0:01:47]} f5 {[%emt 0:01:11]} 23. Nc4 {[%emt 0:00:05]} Re4 {[%emt 0:04:25]} 24. g3 {[%emt 0:01:22]} c5 {[%emt 0:00:28]} 25. Nd2 {[%emt 0:02:00]} Re7 {[%emt 0:00:55]} 26. Nf3 {[%emt 0:01:28]} Bxf3 {[%emt 0:03:05]} 27. Kxf3 {[%emt 0:00:06]} cxd4 {[%emt 0:01:05]} 28. Rxe2 {[%emt 0:02:10]} Rxe2 {[%emt 0:00:39]} 29. Kxe2 {[%emt 0:00:52]} dxc3 {[%emt 0:00:56]} 30. bxc3 {[%emt 0:00:00]} Kf7 {[%emt 0:00:41]} 1/2-1/2

[Event "Croatian-ch Youth U15 2022"]
[Site "Trogir"]
[Date "2022.06.24"]
[Round "5.1"]
[White "Sundac, Ivano"]
[Black "Colev, Ivor"]
[Result "1/2-1/2"]
[ECO "A90"]
[WhiteElo "1978"]
[BlackElo "1984"]
[Annotator "NA RC"]
[PlyCount "64"]
[EventDate "2022.06.22"]
[EventType "swiss"]
[EventCountry "CRO"]
[SourceTitle "playchess.com"]
[Source "ChessBase"]
[SourceQuality "1"]
[TimeControl "5400+30"]

1. d4 {[%emt 0:00:01]} f5 {[%emt 0:00:03]} 2. g3 {[%emt 0:00:04]} Nf6 {[%emt 0:00:04]} 3. Nf3 {[%emt 0:00:08]} e6 {[%emt 0:00:12]} 4. Bg2 {[%emt 0:00:14]} d5 {[%emt 0:00:06]} 5. O-O {[%emt 0:00:25]} Bd6 {[%emt 0:00:04]} 6. c4 {[%emt 0:01:01]} c6 {[%emt 0:00:08]} 7. Nc3 {[%emt 0:01:25]} O-O {[%emt 0:00:09]} 8. cxd5 {[%emt 0:03:19]} exd5 {[%emt 0:02:21]} 9. Bd2 {[%emt 0:04:09]} Ne4 {[%emt 0:01:50]} 10. Qc1 {[%emt 0:00:11]} Nxd2 {[%emt 0:03:35]} 11. Qxd2 {[%emt 0:00:20]} Nd7 {[%emt 0:00:19]} 12. e3 {[%emt 0:00:51]} Nf6 {[%emt 0:00:22]} 13. Rac1 {[%emt 0:04:21]} Ne4 {[%emt 0:04:00]} 14. Qc2 {[%emt 0:02:14]} Qf6 {[%emt 0:02:17]} 15. Nd2 {[%emt 0:02:48]} Qh6 {[%emt 0:09:03]} 16. f4 {[%emt 0:01:53]} Be6 {[%emt 0:05:48]} 17. a3 {[%emt 0:06:21]} Qf6 {[%emt 0:03:57]} 18. Na4 {[%emt 0:04:13]} Nxd2 {[%emt 0:12:18]} 19. Qxd2 {[%emt 0:00:07]} Rfc8 {[%emt 0:00:22]} 20. b4 {[%emt 0:01:56]} Qe7 {[%emt 0:04:44]} 21. Rc2 {[%emt 0:01:49]} b5 {[%emt 0:05:48]} 22. Nc5 {[%emt 0:03:12]} Bxc5 {[%emt 0:00:13]} 23. Rxc5 {[%emt 0:00:02]} Bd7 {[%emt 0:00:44]} 24. Rfc1 {[%emt 0:00:24]} Re8 {[%emt 0:00:31]} 25. Kf2 {[%emt 0:00:41]} Qf6 {[%emt 0:02:23]} 26. Bf3 {[%emt 0:03:44]} Kh8 27. Ra1 {[%emt 0:00:30]} a6 28. a4 {[%emt 0:00:30]} Reb8 29. axb5 {[%emt 0:00:30]} axb5 30. Rcc1 {[%emt 0:00:30]} Qf8 31. Qb2 {[%emt 0:00:30]} h6 32. h4 {[%emt 0:00:30]} Kh7 1/2-1/2

[Event "Croatian-ch Youth U15 2022"]
[Site "Trogir"]
[Date "2022.06.24"]
[Round "5.2"]
[White "Zadro, Matej"]
[Black "Grgantov, Marin"]
[Result "0-1"]
[ECO "C78"]
[WhiteElo "1861"]
[BlackElo "2081"]
[Annotator "NA RC"]
[PlyCount "48"]
[EventDate "2022.06.22"]
[EventType "swiss"]
[EventCountry "CRO"]
[SourceTitle "playchess.com"]
[Source "ChessBase"]
[SourceQuality "1"]
[TimeControl "5400+30"]

1. e4 {[%emt 0:00:05]} e5 {[%emt 0:00:12]} 2. Nf3 {[%emt 0:00:05]} Nc6 {[%emt 0:00:05]} 3. Bb5 {[%emt 0:00:04]} a6 {[%emt 0:00:11]} 4. Ba4 {[%emt 0:00:02]} Nf6 {[%emt 0:00:08]} 5. O-O {[%emt 0:00:05]} b5 {[%emt 0:00:06]} 6. Bb3 {[%emt 0:00:04]} Bb7 {[%emt 0:00:06]} 7. d3 {[%emt 0:01:28]} Bd6 {[%emt 0:00:08]} 8. c3 {[%emt 0:31:16]} O-O {[%emt 0:01:26]} 9. Nbd2 {[%emt 0:00:27]} h6 {[%emt 0:00:44]} 10. Re1 {[%emt 0:01:18]} Re8 {[%emt 0:00:14]} 11. d4 {[%emt 0:09:25]} Bf8 {[%emt 0:00:26]} 12. d5 {[%emt 0:15:12]} Na5 {[%emt 0:16:19]} 13. Bc2 {[%emt 0:03:59]} c6 {[%emt 0:07:17]} 14. b4 {[%emt 0:02:42]} cxd5 {[%emt 0:05:27]} 15. exd5 Nxd5 {[%emt 0:00:30]} 16. Nxe5 Nc6 {[%emt 0:00:30]} 17. Nxc6 Bxc6 {[%emt 0:00:30]} 18. Ne4 Rxe4 {[%emt 0:00:30]} 19. Bxe4 Nxc3 {[%emt 0:00:30]} 20. Bh7+ Kxh7 {[%emt 0:00:30]} 21. Qd3+ g6 {[%emt 0:00:30]} 22. Qxc3 Bg7 {[%emt 0:00:30]} 23. Qh3 Bxa1 {[%emt 0:00:30]} 24. Bxh6 Bf6 {[%emt 0:00:30]} 0-1

[Event "Croatian-ch Youth U15 2022"]
[Site "Trogir"]
[Date "2022.06.24"]
[Round "5.3"]
[White "Horcicka, Jan"]
[Black "Gal, Andrej"]
[Result "0-1"]
[ECO "B63"]
[WhiteElo "1804"]
[BlackElo "1874"]
[Annotator "NA RC"]
[PlyCount "66"]
[EventDate "2022.06.22"]
[EventType "swiss"]
[EventCountry "CRO"]
[SourceTitle "playchess.com"]
[Source "ChessBase"]
[SourceQuality "1"]
[TimeControl "5400+30"]

1. e4 {[%emt 0:00:03]} c5 {[%emt 0:00:04]} 2. Nf3 {[%emt 0:00:03]} d6 {[%emt 0:00:03]} 3. d4 {[%emt 0:00:04]} cxd4 {[%emt 0:00:04]} 4. Nxd4 {[%emt 0:00:03]} Nf6 {[%emt 0:00:05]} 5. Nc3 {[%emt 0:00:03]} Nc6 {[%emt 0:00:03]} 6. Bg5 {[%emt 0:00:03]} e6 {[%emt 0:00:20]} 7. Qd2 {[%emt 0:00:03]} Be7 {[%emt 0:00:09]} 8. O-O-O {[%emt 0:00:04]} O-O {[%emt 0:00:06]} 9. f3 {[%emt 0:00:01]} Nxd4 {[%emt 0:00:13]} 10. Qxd4 {[%emt 0:00:03]} a6 {[%emt 0:00:27]} 11. h4 {[%emt 0:00:11]} b5 {[%emt 0:00:28]} 12. Kb1 {[%emt 0:00:03]} Bb7 {[%emt 0:01:01]} 13. Qd2 {[%emt 0:00:03]} Rc8 {[%emt 0:01:23]} 14. Bd3 {[%emt 0:00:03]} Qc7 {[%emt 0:10:06]} 15. Ne2 {[%emt 0:01:10]} Bc6 {[%emt 0:15:40]} 16. g4 {[%emt 0:03:54]} a5 {[%emt 0:04:18]} 17. h5 {[%emt 0:44:58]} b4 {[%emt 0:05:56]} 18. Bxf6 {[%emt 0:00:29]} Bxf6 {[%emt 0:01:18]} 19. g5 {[%emt 0:00:04]} Be7 {[%emt 0:01:02]} 20. g6 {[%emt 0:00:18]} fxg6 21. h6 {[%emt 0:00:30]} Bf6 22. Rdg1 {[%emt 0:00:30]} d5 23. hxg7 {[%emt 0:00:30]} Kxg7 24. exd5 {[%emt 0:00:30]} Bxd5 25. Qe1 {[%emt 0:00:30]} Qe5 26. c3 {[%emt 0:00:30]} bxc3 27. bxc3 {[%emt 0:00:30]} Qe3 28. Bc2 {[%emt 0:00:30]} Rb8+ 29. Bb3 {[%emt 0:00:30]} Bxb3 30. axb3 {[%emt 0:00:30]} Rxb3+ 31. Kc2 {[%emt 0:00:30]} Rfb8 32. Qh4 {[%emt 0:00:30]} Qxe2+ 33. Kc1 {[%emt 0:00:30]} Rxc3# 0-1

[Event "Croatian-ch Youth U15 2022"]
[Site "Trogir"]
[Date "2022.06.24"]
[Round "5.4"]
[White "Frouth, Vibor"]
[Black "Tomljanovic, Ivano"]
[Result "1/2-1/2"]
[ECO "B19"]
[WhiteElo "1493"]
[BlackElo "1844"]
[Annotator "NA RC"]
[PlyCount "90"]
[EventDate "2022.06.22"]
[EventType "swiss"]
[EventCountry "CRO"]
[SourceTitle "playchess.com"]
[Source "ChessBase"]
[SourceQuality "1"]
[TimeControl "5400+30"]

1. e4 {[%emt 0:00:12]} c6 {[%emt 0:00:33]} 2. d4 {[%emt 0:00:15]} d5 {[%emt 0:00:15]} 3. Nc3 {[%emt 0:00:18]} dxe4 {[%emt 0:00:58]} 4. Nxe4 {[%emt 0:00:07]} Bf5 {[%emt 0:04:51]} 5. Ng3 {[%emt 0:00:18]} Bg6 {[%emt 0:00:18]} 6. h4 {[%emt 0:00:15]} h6 {[%emt 0:00:39]} 7. h5 {[%emt 0:02:26]} Bh7 {[%emt 0:00:15]} 8. Nf3 {[%emt 0:00:44]} Nf6 {[%emt 0:00:40]} 9. Bc4 {[%emt 0:01:49]} e6 {[%emt 0:00:31]} 10. c3 {[%emt 0:02:48]} Bd6 {[%emt 0:02:09]} 11. Ne2 {[%emt 0:03:21]} Nbd7 {[%emt 0:04:04]} 12. Bf4 {[%emt 0:03:32]} Bxf4 {[%emt 0:02:26]} 13. Nxf4 {[%emt 0:00:14]} Nd5 {[%emt 0:00:39]} 14. Nxd5 {[%emt 0:03:23]} exd5 {[%emt 0:00:53]} 15. Qe2+ {[%emt 0:00:42]} Qe7 {[%emt 0:01:20]} 16. Qxe7+ {[%emt 0:00:17]} Kxe7 {[%emt 0:00:10]} 17. Bb3 {[%emt 0:00:12]} Kd6 {[%emt 0:00:59]} 18. Kd2 {[%emt 0:00:47]} Rhe8 {[%emt 0:00:48]} 19. Rae1 {[%emt 0:01:01]} Nf6 {[%emt 0:01:25]} 20. Bc2 {[%emt 0:09:54]} Bxc2 {[%emt 0:01:23]} 21. Kxc2 {[%emt 0:00:10]} Rxe1 {[%emt 0:00:07]} 22. Nxe1 {[%emt 0:01:43]} Re8 {[%emt 0:00:12]} 23. Kd1 {[%emt 0:00:42]} Ng4 {[%emt 0:02:19]} 24. Nd3 {[%emt 0:00:28]} b6 {[%emt 0:04:10]} 25. b4 {[%emt 0:00:52]} a5 {[%emt 0:01:18]} 26. bxa5 {[%emt 0:01:27]} bxa5 {[%emt 0:00:08]} 27. Kd2 {[%emt 0:00:18]} Rb8 {[%emt 0:01:17]} 28. f3 {[%emt 0:00:19]} Nf6 {[%emt 0:00:26]} 29. g4 {[%emt 0:00:15]} Nd7 {[%emt 0:01:02]} 30. Kc2 {[%emt 0:03:00]} c5 {[%emt 0:01:09]} 31. dxc5+ {[%emt 0:00:37]} Nxc5 {[%emt 0:00:44]} 32. Nxc5 {[%emt 0:00:08]} Kxc5 {[%emt 0:00:04]} 33. Re1 {[%emt 0:00:11]} Rb7 {[%emt 0:00:19]} 34. Kd3 {[%emt 0:00:31]} a4 {[%emt 0:00:37]} 35. Re8 {[%emt 0:00:32]} Rb2 {[%emt 0:13:40]} 36. Re2 {[%emt 0:07:23]} Rxe2 37. Kxe2 {[%emt 0:00:30]} Kc4 38. Kd2 {[%emt 0:00:30]} d4 39. cxd4 {[%emt 0:00:30]} Kxd4 40. a3 {[%emt 0:00:30]} f6 41. Ke2 {[%emt 0:00:30]} f5 42. gxf5 {[%emt 0:00:30]} Ke5 43. f6 {[%emt 0:00:30]} Kxf6 44. f4 {[%emt 0:00:30]} g6 45. hxg6 {[%emt 0:00:30]} Kxg6 1/2-1/2

[Event "Croatian-ch Youth U15 2022"]
[Site "Trogir"]
[Date "2022.06.24"]
[Round "5.5"]
[White "Franc, Borna"]
[Black "Rautner, Fran"]
[Result "1/2-1/2"]
[ECO "B06"]
[WhiteElo "2032"]
[BlackElo "1753"]
[Annotator "NA RC"]
[PlyCount "62"]
[EventDate "2022.06.22"]
[EventType "swiss"]
[EventCountry "CRO"]
[SourceTitle "playchess.com"]
[Source "ChessBase"]
[SourceQuality "1"]
[TimeControl "5400+30"]

1. e4 {[%emt 0:00:03]} c5 {[%emt 0:00:15]} 2. c3 {[%emt 0:00:02]} d5 {[%emt 0:00:09]} 3. exd5 {[%emt 0:00:04]} Qxd5 {[%emt 0:00:21]} 4. d4 {[%emt 0:00:05]} g6 {[%emt 0:02:05]} 5. Nf3 {[%emt 0:00:29]} Bg7 {[%emt 0:01:09]} 6. Be2 {[%emt 0:00:04]} Nc6 {[%emt 0:08:50]} 7. dxc5 {[%emt 0:00:20]} Qxc5 {[%emt 0:04:07]} 8. Be3 {[%emt 0:00:24]} Qa5 {[%emt 0:00:48]} 9. O-O {[%emt 0:00:42]} Nf6 {[%emt 0:03:41]} 10. Nd4 {[%emt 0:02:24]} Nxd4 {[%emt 0:09:07]} 11. Bxd4 {[%emt 0:00:31]} O-O {[%emt 0:06:09]} 12. Nd2 {[%emt 0:01:33]} Be6 {[%emt 0:04:07]} 13. Bf3 {[%emt 0:05:28]} Bd5 {[%emt 0:06:18]} 14. Nb3 {[%emt 0:02:22]} Qb5 {[%emt 0:04:16]} 15. Bxd5 {[%emt 0:00:58]} Qxd5 {[%emt 0:05:31]} 16. Qe2 {[%emt 0:16:54]} Rfe8 {[%emt 0:08:35]} 17. Rad1 {[%emt 0:00:34]} Qf5 {[%emt 0:01:01]} 18. Be5 {[%emt 0:06:45]} Nh5 19. Bxg7 {[%emt 0:00:30]} Nxg7 20. Qe3 {[%emt 0:00:30]} Qe6 21. Qd3 {[%emt 0:00:30]} Qb6 22. Qd4 {[%emt 0:00:30]} Qxd4 23. Rxd4 {[%emt 0:00:30]} Red8 24. Rfd1 {[%emt 0:00:30]} Ne6 25. Rd7 {[%emt 0:00:30]} Rxd7 26. Rxd7 {[%emt 0:00:30]} Rd8 27. Rxd8+ {[%emt 0:00:30]} Nxd8 28. Kf1 {[%emt 0:00:30]} Kg7 29. Ke2 {[%emt 0:00:30]} Kf6 30. Nc5 {[%emt 0:00:30]} Ke5 31. Kd3 {[%emt 0:00:30]} Kd5 1/2-1/2

[Event "Croatian-ch Youth U15 2022"]
[Site "Trogir"]
[Date "2022.06.24"]
[Round "5.6"]
[White "Babler, Jan"]
[Black "Jakovic, Roko"]
[Result "0-1"]
[ECO "B98"]
[WhiteElo "1616"]
[BlackElo "1944"]
[Annotator "NA RC"]
[PlyCount "78"]
[EventDate "2022.06.22"]
[EventType "swiss"]
[EventCountry "CRO"]
[SourceTitle "playchess.com"]
[Source "ChessBase"]
[SourceQuality "1"]
[TimeControl "5400+30"]

1. e4 {[%emt 0:00:04]} c5 {[%emt 0:00:14]} 2. Nf3 {[%emt 0:00:09]} d6 {[%emt 0:00:06]} 3. d4 {[%emt 0:00:07]} cxd4 {[%emt 0:00:05]} 4. Nxd4 {[%emt 0:00:10]} Nf6 {[%emt 0:00:13]} 5. Nc3 {[%emt 0:00:08]} a6 {[%emt 0:00:13]} 6. Bg5 {[%emt 0:00:12]} e6 {[%emt 0:00:31]} 7. f4 {[%emt 0:00:08]} Be7 {[%emt 0:00:21]} 8. Qf3 {[%emt 0:00:12]} Qc7 {[%emt 0:00:29]} 9. O-O-O {[%emt 0:00:20]} h6 {[%emt 0:00:21]} 10. Bxf6 {[%emt 0:09:35]} Bxf6 {[%emt 0:00:10]} 11. f5 {[%emt 0:01:35]} Nc6 {[%emt 0:10:15]} 12. Nxc6 {[%emt 0:13:05]} Qxc6 {[%emt 0:00:47]} 13. fxe6 {[%emt 0:03:02]} Bxe6 {[%emt 0:00:57]} 14. Nd5 {[%emt 0:04:43]} Bxd5 {[%emt 0:03:44]} 15. exd5 {[%emt 0:00:44]} Qb6 {[%emt 0:03:20]} 16. Re1+ {[%emt 0:01:53]} Be5 {[%emt 0:00:30]} 17. Qb3 {[%emt 0:03:08]} Qxb3 {[%emt 0:05:31]} 18. axb3 {[%emt 0:00:05]} O-O {[%emt 0:01:27]} 19. Bd3 {[%emt 0:02:08]} f5 {[%emt 0:08:50]} 20. Rhf1 {[%emt 0:05:55]} f4 {[%emt 0:01:04]} 21. Be4 {[%emt 0:02:52]} g5 {[%emt 0:03:11]} 22. Bf3 {[%emt 0:03:29]} a5 {[%emt 0:01:44]} 23. Be2 Kg7 {[%emt 0:00:30]} 24. h4 Rh8 {[%emt 0:00:30]} 25. hxg5 hxg5 {[%emt 0:00:30]} 26. Rh1 Rae8 {[%emt 0:00:30]} 27. Bh5 Bxb2+ {[%emt 0:00:30]} 28. Kxb2 Rxe1 {[%emt 0:00:30]} 29. Rxe1 Rxh5 {[%emt 0:00:30]} 30. Rf1 Rh2 {[%emt 0:00:30]} 31. Rf2 Kf6 {[%emt 0:00:30]} 32. c4 Ke5 {[%emt 0:00:30]} 33. Kc3 g4 {[%emt 0:00:30]} 34. Re2+ Kf5 {[%emt 0:00:30]} 35. Kd3 b6 {[%emt 0:00:30]} 36. Kd2 f3 {[%emt 0:00:30]} 37. gxf3 g3 {[%emt 0:00:30]} 38. Ke1 g2 {[%emt 0:00:30]} 39. Kf2 g1=Q+ {[%emt 0:00:30]} 0-1

[Event "Croatian-ch Youth U15 2022"]
[Site "Trogir"]
[Date "2022.06.24"]
[Round "5.7"]
[White "Mandaric, Fran"]
[Black "Car, Jura"]
[Result "1-0"]
[ECO "C90"]
[WhiteElo "1808"]
[BlackElo "1298"]
[Annotator "NA RC"]
[PlyCount "49"]
[EventDate "2022.06.22"]
[EventType "swiss"]
[EventCountry "CRO"]
[SourceTitle "playchess.com"]
[Source "ChessBase"]
[SourceQuality "1"]
[TimeControl "5400+30"]

1. e4 {[%emt 0:00:03]} e5 {[%emt 0:00:03]} 2. Nf3 {[%emt 0:00:05]} Nc6 {[%emt 0:00:06]} 3. Bb5 {[%emt 0:00:05]} a6 {[%emt 0:00:04]} 4. Ba4 {[%emt 0:00:04]} Nf6 {[%emt 0:00:05]} 5. d3 {[%emt 0:00:05]} b5 {[%emt 0:00:09]} 6. Bb3 {[%emt 0:00:05]} Be7 {[%emt 0:00:10]} 7. O-O {[%emt 0:00:07]} O-O {[%emt 0:00:06]} 8. Re1 {[%emt 0:00:25]} d6 {[%emt 0:00:20]} 9. c3 {[%emt 0:00:05]} Na5 {[%emt 0:00:09]} 10. Bc2 {[%emt 0:00:07]} c5 {[%emt 0:00:34]} 11. Nbd2 {[%emt 0:00:28]} Bg4 {[%emt 0:01:28]} 12. h3 {[%emt 0:00:13]} Be6 {[%emt 0:01:46]} 13. Nf1 {[%emt 0:00:36]} h6 {[%emt 0:00:31]} 14. Ng3 {[%emt 0:00:17]} Re8 {[%emt 0:01:17]} 15. d4 {[%emt 0:02:51]} cxd4 {[%emt 0:03:34]} 16. cxd4 {[%emt 0:00:17]} Qc7 {[%emt 0:00:23]} 17. b3 {[%emt 0:19:45]} Bf8 {[%emt 0:06:53]} 18. Bb2 {[%emt 0:03:17]} exd4 {[%emt 0:16:55]} 19. Nxd4 {[%emt 0:00:17]} Nc6 {[%emt 0:00:21]} 20. Nxc6 {[%emt 0:07:45]} Qxc6 {[%emt 0:00:15]} 21. Rc1 {[%emt 0:03:47]} Qb6 {[%emt 0:08:40]} 22. Bxf6 {[%emt 0:04:06]} gxf6 {[%emt 0:00:16]} 23. Nh5 {[%emt 0:00:08]} Re7 {[%emt 0:08:03]} 24. Qd3 {[%emt 0:09:56]} Rd8 25. Nxf6+ {[%emt 0:00:30]} 1-0

[Event "Croatian-ch Youth U15 2022"]
[Site "Trogir"]
[Date "2022.06.24"]
[Round "5.8"]
[White "Bunic, Emanuel"]
[Black "Djuric, Leon"]
[Result "1-0"]
[ECO "A85"]
[WhiteElo "1941"]
[BlackElo "1475"]
[Annotator "NA RC"]
[PlyCount "78"]
[EventDate "2022.06.22"]
[EventType "swiss"]
[EventCountry "CRO"]
[SourceTitle "playchess.com"]
[Source "ChessBase"]
[SourceQuality "1"]
[TimeControl "5400+30"]

1. d4 {[%emt 0:00:03]} f5 {[%emt 0:00:05]} 2. c4 {[%emt 0:00:28]} e6 {[%emt 0:00:06]} 3. Nc3 {[%emt 0:00:26]} Nf6 {[%emt 0:00:08]} 4. Bf4 {[%emt 0:01:01]} Bb4 {[%emt 0:00:49]} 5. Nf3 {[%emt 0:01:00]} O-O {[%emt 0:00:32]} 6. Qc2 {[%emt 0:04:44]} b6 {[%emt 0:01:22]} 7. g3 {[%emt 0:02:19]} Bb7 {[%emt 0:00:35]} 8. Bg2 {[%emt 0:00:31]} d6 {[%emt 0:00:42]} 9. O-O {[%emt 0:01:46]} Bxc3 {[%emt 0:00:10]} 10. bxc3 {[%emt 0:00:31]} Nbd7 {[%emt 0:01:07]} 11. Ng5 {[%emt 0:17:24]} Bxg2 {[%emt 0:00:37]} 12. Nxe6 {[%emt 0:02:06]} Be4 {[%emt 0:04:24]} 13. Qd1 {[%emt 0:02:03]} Qc8 {[%emt 0:01:01]} 14. Nxf8 {[%emt 0:03:09]} Nxf8 {[%emt 0:02:26]} 15. d5 {[%emt 0:00:35]} b5 {[%emt 0:06:16]} 16. f3 {[%emt 0:01:17]} bxc4 {[%emt 0:00:35]} 17. fxe4 {[%emt 0:00:21]} Nxe4 {[%emt 0:00:52]} 18. Qd4 {[%emt 0:01:36]} Qa6 {[%emt 0:03:00]} 19. Be3 {[%emt 0:02:48]} Qa5 {[%emt 0:06:31]} 20. Rxf5 {[%emt 0:13:04]} Qxc3 {[%emt 0:00:49]} 21. Rc1 {[%emt 0:00:48]} Qxd4 {[%emt 0:01:54]} 22. Bxd4 {[%emt 0:00:07]} Nd7 {[%emt 0:03:45]} 23. Rxc4 {[%emt 0:02:27]} Ndc5 {[%emt 0:00:39]} 24. Bxc5 {[%emt 0:00:27]} Nxc5 {[%emt 0:00:07]} 25. Rcf4 {[%emt 0:00:09]} h6 {[%emt 0:02:24]} 26. Rf7 {[%emt 0:02:23]} Na6 {[%emt 0:00:34]} 27. Re7 {[%emt 0:01:09]} Rf8 {[%emt 0:00:18]} 28. Ra4 {[%emt 0:00:42]} Nc5 {[%emt 0:00:58]} 29. Rxa7 {[%emt 0:00:12]} Rf5 30. Raxc7 {[%emt 0:00:30]} Rxd5 31. Rxg7+ {[%emt 0:00:30]} Kf8 32. Rh7 {[%emt 0:00:30]} Kg8 33. Rcg7+ {[%emt 0:00:30]} Kf8 34. Ra7 {[%emt 0:00:30]} Kg8 35. Rhc7 {[%emt 0:00:30]} Ne6 36. Rc8+ {[%emt 0:00:30]} Nf8 37. Raa8 {[%emt 0:00:30]} Rf5 38. Rxf8+ {[%emt 0:00:30]} Rxf8 39. Rxf8+ {[%emt 0:00:30]} Kxf8 1-0